{"text_format":"1","workbook":"xlsx","n_sheets":10,"sheets":["メニュー","基本情報入力","作業の種類設定","労働時間入力","労務管理記録簿","ログ","エラーリスト","【前バージョン取込】","(非)項目リスト","(非)エラー一覧"],"not_rendered":{"charts":0,"images":21,"macros":1,"external_links":1,"defined_names":29,"comments":0,"pivot_tables":0},"unopened":[],"bounds":{"document_bytes":16777216,"sheet_cells":100000,"rows_first":2000,"rows_last":500,"rows_between":2000,"halvings":0,"cell_chars":16384,"cell_head_chars":4096},"cells_cut":0,"cells_raw":0,"read":"whole","date_system":"1900"}

{"sheet":"メニュー","index":0,"n_rows":41,"n_cols":25,"rows_kept":41,"cut":false,"hidden":false,"merged":[[1,24,7,24],[40,2,40,20],[4,1,4,21],[39,1,39,21],[32,1,32,21],[11,1,11,21],[12,2,12,20],[33,2,33,20],[5,2,5,20],[18,1,18,21],[19,2,19,20],[25,1,25,21],[26,2,26,20]]}
[null,"船員の労働時間管理支援ツール"]
[null,null,null,null,null,null,null,null,null,null,null,null,null,null,null,null,null,null,null,null,null,"国土交通省　海事局　船員政策課",null,null,"※本ツールの動作環境について\n本ツールの推奨動作環境は以下のとおりです。なお、以下の動作環境以外では正しく動作しない場合がありますのでご注意ください。\n\nOS：Windows10、11\n表計算ソフト：Microsoft Excel 2016、2021"]
[null,null,null,null,null,null,null,null,null,null,null,null,null,null,null,null,null,null,null,null,null,"Ver.2.0"]
[]
[null,"（１）基本情報入力"]
[null,null,"「基本情報入力シート」にて、船員の情報、乗船期間や労働条件等を入力してください。"]
[]
[]
[]
[]
[]
[null,"（２）作業の種類設定"]
[null,null,"「作業の種類設定シート」にて、作業の種類の追加、労務管理記録簿に表示する作業の種類の色の設定を行ってください。"]
[]
[]
[]
[]
[]
[null,"（３）労務管理記録簿のレイアウト作成"]
[null,null,"「基本情報入力シート」、「作業の種類設定シート」に入力した情報から、「労務管理記録簿」のレイアウトを作成します。\nなお、「労務管理記録簿」のレイアウト作成前に「基本情報シート」、「作業の種類設定シート」の入力内容のチェックを行い、エラーが検出された場合はエラーリストに出力されます。その場合はエラーリストを確認し、エラーを解消した上で再度労務管理記録簿のレイアウト作成を実行してください。"]
[]
[]
[]
[]
[]
[null,"（４）休日または補償休日、有給休暇等入力"]
[null,null,"「労務管理記録簿シート」にて、休日または補償休日、有給休暇を入力してください。\nまた、必要に応じて補償休日の付与の延期を入力してください。"]
[]
[]
[]
[]
[]
[null,"（５）労働時間入力"]
[null,null,"「労働時間入力シート」にて、日々の労働時間や作業の種類等を入力してください。\nまた、船長は、日々の［安全臨時労働］、［緊急作業］の時間を入力してください。"]
[]
[]
[]
[]
[]
[null,"（６）労務管理記録簿作成"]
[null,null,"「基本情報入力シート」、「作業の種類設定シート」、「労働時間入力シート」に入力した情報から、「労務管理記録簿」を作成します。\n労務管理記録簿では、労働時間、総労働時間、時間外労働、休息時間の情報が船員法の規定に抵触する場合は、該当範囲を赤枠線で囲んで表示します。\nなお、「労務管理記録簿」の作成前に「基本情報シート」、「作業の種類設定シート」、「労働時間シート」、「労務管理記録簿シート」の入力内容のチェックを行い、エラーが検出された場合はエラーリストに出力されます。その場合はエラーリストを確認し、エラーを解消した上で再度労務管理記録簿作成を実行してください。"]

{"sheet":"基本情報入力","index":1,"n_rows":33,"n_cols":8,"rows_kept":33,"cut":false,"hidden":false,"merged":[[17,3,17,5],[17,6,17,8],[16,3,16,5],[10,3,10,5],[11,3,11,5],[12,3,12,5],[13,3,13,5],[14,6,14,8],[15,6,15,8],[16,6,16,8],[4,3,4,5],[7,3,7,5],[4,1,4,2],[5,1,5,2],[6,1,6,2],[7,1,7,2],[5,3,5,5],[6,3,6,5],[4,6,4,8],[5,6,5,8],[6,6,6,8],[7,6,7,8],[8,6,8,8],[9,6,9,8],[10,6,10,8],[11,6,11,8],[12,6,12,8],[13,6,13,8]]}
["（１）基本情報入力",null,null,null,null,null,null,"「メニュー」シートに戻る"]
[]
[null,"１）基本情報"]
[null,"項目",null,"記入欄",null,null,"記載要領"]
[null,"船員の氏名",null,null,null,null,"船員の氏名を記載"]
[null,"船舶所有者名",null,null,null,null,"船員法上の船舶所有者名を記載"]
[null,"派遣元船舶所有者名\n（派遣の場合に限る）",null,null,null,null,"派遣の場合に、派遣元の船舶所有者名を記載"]
[null,"労務管理責任者の氏名",null,null,null,null,"労務管理責任者の氏名を記載"]
[null,"基準労働期間","基準労働期間",null,"月",null,"１年以下の範囲内で記載（例：12月）"]
[null,null,"起算日及び末日",null,"～",{"$f":"IF(AND(D9<>\"\",D10<>\"\"),IF(ISERROR(EDATE(D10,D9))=FALSE,EDATE(D10,D9)-1,\"\"),\"\")","v":""},"基準労働期間の起算日を記載（例：2022年４月１日）"]
[null,"労使協定等","時間外労使協定の有無",null,null,null,"法第64条の２第１項に基づく協定の締結の有無を選択。有の場合は、1日８時間を超えて労働させることができる。"]
[null,null,"補償休日労働協定の有無",null,null,null,"法第65条に基づく協定の締結の有無を選択。有の場合は、休日及び補償休日の日数を合計した日数の３分の１を限度に、補償休日に労働させることができる。"]
[null,null,"休息時間分割回数協定の有無",null,null,null,"法第６５条の３第３項に基づく協定の締結の有無を選択。有の場合は、１日について休息時間を３回以上に分割することが可能。"]
[null,"補償休日・有給休暇","休日日数の定めの有無",null,null,null,"施行規則第42条の２第３項に基づく休日の日数の定めの有無を選択。"]
[null,null,"休日日数を定めている場合の日数",null,"日",null,"上記で有を選択した場合に、労働協約、就業規則等において定められている、基準労働期間内に与える休日の日数を記載。"]
[null,null,"有給休暇の必要日数",null,"日",null,"当該船員に付与すべき有給休暇の日数を記載"]
[null,"その他","７２条特例",null,null,null,"法第72条特例の指定の有無を選択"]
[null,null,"一日当たりの労働時間",null,null,null,"上記で有を選択した場合に、一日当たりの労働時間を記載（12時間の場合は「1200」と記載）"]
[]
[null,"２）乗船期間・船名・職名"]
[null,"項目",null,"開始日及び終了日",null,null,"船名","職名"]
[null,"start"]
[null,"乗船期間",null,null,"～"]
[null,null,null,null,"～"]
[null,null,null,null,"～"]
[null,null,null,null,"～"]
[null,null,null,null,"～"]
[null,null,null,null,"～"]
[null,null,null,null,"～"]
[null,null,null,null,"～"]
[null,null,null,null,"～"]
[null,null,null,null,"～"]
[null,"end"]

{"sheet":"作業の種類設定","index":2,"n_rows":17,"n_cols":9,"rows_kept":17,"cut":false,"hidden":false,"merged":[[9,7,11,10]]}
["（２）作業の種類設定",null,null,null,null,null,null,null,"「メニュー」シートに戻る"]
[]
[null,"作業の種類","労務管理記録簿に表示する色","選択肢用表示","初期値フラグ","初期値"]
[null,"start"]
[null,"当直","①","①当直",1,"①"]
[null,"当直引継","②","②当直引継",2,"②"]
[null,"荷役","③","③荷役",1,"③"]
[null,"出入港","④","④出入港",1,"④"]
[null,"保守","⑤","⑤保守",1,"⑤"]
[null,"停泊中作業","⑥","⑥停泊中作業",1,"⑥",null,"※初期値について\n「当直（①）」～「その他（事務等）（⑫）」は\n初期値として設定されています。\nこの項目は作業の種類名及び色の変更、\n行の削除はできません。"]
[null,"供食","⑦","⑦供食",1,"⑦"]
[null,"操練等","⑧","⑧操練等",2,"⑧"]
[null,"研修","⑨","⑨研修",1,"⑨"]
[null,"安全臨時労働","⑩","⑩安全臨時労働【船長のみ】",8,"⑩"]
[null,"緊急作業（人命救助等）","⑪","⑪緊急作業（人命救助等）【船長のみ】",9,"⑪"]
[null,"その他（事務等）","⑫","⑫その他（事務等）",1,"⑫"]
[null,"end"]

{"sheet":"労働時間入力","index":3,"n_rows":23,"n_cols":19,"rows_kept":23,"cut":false,"hidden":false,"merged":[[3,8,8,16],[11,4,11,5],[4,4,4,5],[5,4,5,5],[6,4,6,5],[7,4,7,5],[8,4,8,5],[10,4,10,5]]}
["（５）労働時間入力",null,null,null,null,null,"「メニュー」シートに戻る"]
[]
[null,"１）労働時間入力"]
[null,null,null,null,null,null,null,null,"※時刻の入力方法について\n・時刻入力は、整数４桁（又は３桁）で入力します。なお、入力した値は”00:00”形式で表示します。そのため時間と分の間の”:”は入力しないでください。\n　例）　８時３０分　→　  830　と入力します。\n　　　１２時００分　→　1200　と入力します。\n・日付を跨いだ作業を入力する場合は、日付で分けて入力、又は翌日の作業終了時刻を入力してください。\n　例）20:00～翌日1:00の作業を入力する場合\n　　　日付で分けて入力　　　　　　：　当日20:00～0:00、翌日0:00～1:00\n　　　翌日の作業終了時刻を入力：　当日20:00～1:00\n・該当項目は、「１）労働時間入力」の「作業開始時刻」と「作業終了時刻」、「２）労働時間一覧」の「安全臨時労働」と「緊急作業」になります。"]
[null,null,"年月日"]
[null,null,"作業開始時刻"]
[null,null,"作業終了時刻"]
[null,null,"作業の種類"]
[null,null,"備考"]
[]
[null,null,"修正者"]
[null,null,"修正理由"]
[]
[]
[]
[]
[]
[null,"２）労働時間一覧"]
[]
[null,null,null,null,"通常労働（右記以外）",null,null,"安全臨時労働",null,"緊急作業",null,null,"入力・修正状況"]
[null,"No","日付","曜日","作業の種類","開始時刻","終了時刻","開始時刻","終了時刻","開始時刻","終了時刻","備考","入力日時","作業の種類（当初入力）","通常労働（当初入力）",null,"修正日時","修正者","修正理由"]
[null,"start"]
[null,"end"]

{"sheet":"労務管理記録簿","index":4,"n_rows":36,"n_cols":134,"rows_kept":36,"cut":false,"hidden":false,"merged":[[9,1,9,21],[9,22,9,41],[9,42,9,55],[2,106,2,107],[2,117,2,125],[2,126,2,129],[3,1,4,3],[3,4,4,30],[6,1,6,21],[6,22,6,41],[6,42,6,55],[6,59,6,77],[6,78,6,86],[9,70,9,74],[9,78,9,94],[9,95,9,101],[14,26,14,28],[14,29,14,34],[14,35,14,37],[14,38,14,43],[14,44,14,46],[2,100,2,105],[9,103,9,107],[10,1,10,21],[10,22,10,41],[10,42,10,55],[10,59,10,71],[10,72,10,82],[10,83,10,92],[10,95,10,107],[7,1,7,21],[7,22,7,41],[7,42,7,55],[7,59,7,77],[7,78,7,86],[8,1,8,21],[8,22,8,41],[8,42,8,55],[8,59,8,77],[8,78,8,86],[11,95,11,101],[14,74,14,79],[14,80,14,82],[14,83,14,88],[11,102,11,106],[12,1,12,21],[12,22,12,41],[12,42,12,55],[12,59,12,71],[12,72,12,82],[12,83,12,92],[12,95,12,101],[12,102,12,106],[11,1,11,21],[11,22,11,41],[11,42,11,55],[11,59,11,71],[11,72,11,82],[11,83,11,92],[14,62,14,64],[14,8,14,10],[14,11,14,16],[14,17,14,19],[14,20,14,25],[16,17,16,19],[16,20,16,25],[16,26,16,28],[16,29,16,34],[16,35,16,37],[16,38,16,43],[20,55,20,58],[20,59,20,62],[20,63,20,66],[19,111,20,113],[19,114,20,116],[19,126,20,128],[19,129,20,131],[18,117,20,119],[20,3,20,6],[20,7,20,10],[20,11,20,14],[20,15,20,18],[20,19,20,22],[20,23,20,26],[20,27,20,30],[20,31,20,34],[18,99,20,101],[18,108,20,110],[18,111,18,116],[18,126,18,131],[19,102,20,104],[19,105,20,107],[18,120,20,122],[18,123,20,125],[16,83,16,88],[16,89,16,91],[16,92,16,97],[16,44,16,46],[16,47,16,52],[16,53,16,55],[16,56,16,61],[16,62,16,64],[14,47,14,52],[14,53,14,55],[14,56,14,61],[14,89,14,91],[14,92,14,97],[14,65,14,70],[14,71,14,73],[16,71,16,73],[16,65,16,70],[16,8,16,10],[16,11,16,16],[9,59,9,69],[33,2,34,14],[33,16,34,20],[33,21,34,62],[33,107,34,120],[33,123,34,131],[35,107,35,120],[29,2,30,14],[29,16,30,20],[29,21,30,62],[29,107,29,120],[30,107,31,120],[30,123,31,131],[31,2,32,14],[31,16,32,20],[31,21,32,62],[23,117,24,119],[16,74,16,79],[16,80,16,82],[23,120,24,122],[23,123,24,125],[23,126,24,128],[23,129,24,131],[26,1,27,62],[26,107,27,120],[26,123,27,131],[23,1,24,2],[23,99,24,101],[23,102,24,104],[23,105,24,107],[23,108,24,110],[23,111,24,113],[23,114,24,116],[18,1,20,2],[18,3,19,98],[20,35,20,38],[20,39,20,42],[20,91,20,94],[20,95,20,98],[20,67,20,70],[20,71,20,74],[20,75,20,78],[20,79,20,82],[20,83,20,86],[20,87,20,90],[20,43,20,46],[20,47,20,50],[20,51,20,54]]}
[null,null,null,null,null,null,null,null,null,null,null,null,null,null,null,null,null,null,null,null,null,null,null,null,null,null,null,null,null,null,null,null,null,null,null,null,null,null,null,null,null,null,null,null,null,null,null,null,null,null,null,null,null,null,null,null,null,null,null,null,null,null,null,null,null,null,null,null,null,null,null,null,null,null,null,null,null,null,null,null,null,null,null,null,null,null,null,null,null,null,null,null,null,null,null,null,null,null,null,null,null,null,null,null,null,null,null,null,null,null,null,null,null,null,null,null,null,null,null,null,null,null,null,null,null,null,null,null,null,null,null,null,null,"「メニュー」シートに戻る"]
[null,"労　務　管　理　記　録　簿"]
[]
[null,"氏名"]
[]
[]
[null,"乗船期間",null,null,null,null,null,null,null,null,null,null,null,null,null,null,null,null,null,null,null,null,"船名",null,null,null,null,null,null,null,null,null,null,null,null,null,null,null,null,null,null,null,"職名",null,null,null,null,null,null,null,null,null,null,null,null,null,null,null,null,"時間外労働協定の有無"]
[null,null,null,null,null,null,null,null,null,null,null,null,null,null,null,null,null,null,null,null,null,null,null,null,null,null,null,null,null,null,null,null,null,null,null,null,null,null,null,null,null,null,null,null,null,null,null,null,null,null,null,null,null,null,null,null,null,null,null,"補償休日労働協定の有無"]
[null,null,null,null,null,null,null,null,null,null,null,null,null,null,null,null,null,null,null,null,null,null,null,null,null,null,null,null,null,null,null,null,null,null,null,null,null,null,null,null,null,null,null,null,null,null,null,null,null,null,null,null,null,null,null,null,null,null,null,"休息時間分割協定の有無"]
[null,null,null,null,null,null,null,null,null,null,null,null,null,null,null,null,null,null,null,null,null,null,null,null,null,null,null,null,null,null,null,null,null,null,null,null,null,null,null,null,null,null,null,null,null,null,null,null,null,null,null,null,null,null,null,null,null,null,null,"基準労働期間",null,null,null,null,null,null,null,null,null,null,null,null,null,null,null,null,"月",null,"基準労働期間の起算日及び末日",null,null,null,null,null,null,null,null,null,null,null,null,null,null,null,null,null,null,null,null,null,null,null,"～",{"$f":"IF(AND(BS10<>\"\",CR10<>\"\"),IF(ISERROR(EDATE(CR10,BS10))=FALSE,EDATE(CR10,BS10)-1,\"\"),\"\")","v":""}]
[null,null,null,null,null,null,null,null,null,null,null,null,null,null,null,null,null,null,null,null,null,null,null,null,null,null,null,null,null,null,null,null,null,null,null,null,null,null,null,null,null,null,null,null,null,null,null,null,null,null,null,null,null,null,null,null,null,null,null,"休日（補償休日を除く）",null,null,null,null,null,null,null,null,null,null,null,null,"付与日数",null,null,null,null,null,null,null,null,null,null,{"$f":"COUNTIF(DQ22:DQ23,\"○\")+(COUNTIF(DQ22:DQ23,\"○半\")*0.5)","v":0},null,null,null,null,null,null,null,null,null,"日"]
[null,null,null,null,null,null,null,null,null,null,null,null,null,null,null,null,null,null,null,null,null,null,null,null,null,null,null,null,null,null,null,null,null,null,null,null,null,null,null,null,null,null,null,null,null,null,null,null,null,null,null,null,null,null,null,null,null,null,null,"補償休日",null,null,null,null,null,null,null,null,null,null,null,null,"必要日数",null,null,null,null,null,null,null,null,null,null,null,null,null,null,null,null,null,null,null,null,"日",null,"付与日数",null,null,null,null,null,null,{"$f":"COUNTIF(DQ22:DQ23,\"ホ\")+COUNTIF(DQ22:DQ23,\"陸ホ\")","v":0},null,null,null,null,"日"]
[null,null,null,null,null,null,null,null,null,null,null,null,null,null,null,null,null,null,null,null,null,null,null,null,null,null,null,null,null,null,null,null,null,null,null,null,null,null,null,null,null,null,null,null,null,null,null,null,null,null,null,null,null,null,null,null,null,null,null,"有給休暇",null,null,null,null,null,null,null,null,null,null,null,null,"必要日数",null,null,null,null,null,null,null,null,null,null,null,null,null,null,null,null,null,null,null,null,"日",null,"付与日数",null,null,null,null,null,null,{"$f":"COUNTIF(DT22:DT23,\"○\")","v":0},null,null,null,null,"日"]
[]
[null,"作業の種類：",null,null,null,null,null,null,"①",null,null,"当直",null,null,null,null,null,"②",null,null,"当直引継",null,null,null,null,null,"③",null,null,"荷役",null,null,null,null,null,"④",null,null,"出入港",null,null,null,null,null,"⑤",null,null,"保守",null,null,null,null,null,"⑥",null,null,"停泊中作業",null,null,null,null,null,"⑦",null,null,"供食",null,null,null,null,null,"⑧",null,null,"操練等",null,null,null,null,null,"⑨",null,null,"研修",null,null,null,null,null,"⑩",null,null,"安全臨時労働"]
[]
[null,null,null,null,null,null,null,null,"⑪",null,null,"緊急作業（人命救助等）",null,null,null,null,null,"⑫",null,null,"その他（事務等）"]
[]
[null,"月日",null,"作業の開始及び終了の記録",null,null,null,null,null,null,null,null,null,null,null,null,null,null,null,null,null,null,null,null,null,null,null,null,null,null,null,null,null,null,null,null,null,null,null,null,null,null,null,null,null,null,null,null,null,null,null,null,null,null,null,null,null,null,null,null,null,null,null,null,null,null,null,null,null,null,null,null,null,null,null,null,null,null,null,null,null,null,null,null,null,null,null,null,null,null,null,null,null,null,null,null,null,null,null,"1日\n当たりの\n労働\n時間",null,null,null,null,null,null,null,null,"１週間\n当たりの\n労働\n時間",null,null,"補償休日",null,null,null,null,null,"安全\n臨時\n労働",null,null,"休日\n又は\n補償\n休日",null,null,"有給\n休暇",null,null,"休息時間"]
[null,null,null,null,null,null,null,null,null,null,null,null,null,null,null,null,null,null,null,null,null,null,null,null,null,null,null,null,null,null,null,null,null,null,null,null,null,null,null,null,null,null,null,null,null,null,null,null,null,null,null,null,null,null,null,null,null,null,null,null,null,null,null,null,null,null,null,null,null,null,null,null,null,null,null,null,null,null,null,null,null,null,null,null,null,null,null,null,null,null,null,null,null,null,null,null,null,null,null,null,null,null,"時間外\n労働",null,null,"補償\n休日\n労働",null,null,null,null,null,"補償休\n日が生\nじる一\n週間",null,null,"超過\n時間数",null,null,null,null,null,null,null,null,null,null,null,"時間数",null,null,"分割時の\n長い方の\n時間数"]
[null,null,null,0,null,null,null,1,null,null,null,2,null,null,null,3,null,null,null,4,null,null,null,5,null,null,null,6,null,null,null,7,null,null,null,8,null,null,null,9,null,null,null,10,null,null,null,11,null,null,null,12,null,null,null,13,null,null,null,14,null,null,null,15,null,null,null,16,null,null,null,17,null,null,null,18,null,null,null,19,null,null,null,20,null,null,null,21,null,null,null,22,null,null,null,23]
["start"]
["end"]
[]
[]
[]
[null,"補償休日の付与の延期",null,null,null,null,null,null,null,null,null,null,null,null,null,null,null,null,null,null,null,null,null,null,null,null,null,null,null,null,null,null,null,null,null,null,null,null,null,null,null,null,null,null,null,null,null,null,null,null,null,null,null,null,null,null,null,null,null,null,null,null,null,null,null,null,null,null,null,null,null,null,null,null,null,null,null,null,null,null,null,null,null,null,null,null,null,null,null,null,null,null,null,null,null,null,null,null,null,null,null,null,null,null,null,"00:00:00",null,"労務管理責任者"]
[null,null,null,null,null,null,null,null,null,null,null,null,null,null,null,null,null,null,null,null,null,null,null,null,null,null,null,null,null,null,null,null,null,null,null,null,null,null,null,null,null,null,null,null,null,null,null,null,null,null,null,null,null,null,null,null,null,null,null,null,null,null,null,null,null,null,null,null,null,null,null,null,null,null,null,null,null,null,null,null,null,null,null,null,null,null,null,null,null,null,null,null,null,null,null,null,null,null,null,null,null,null,null,null,null,null,null,null,null,null,null,null,null,null,null,null,null,null,null,null,null,"："]
[null,"start",null,null,null,null,null,null,null,null,null,null,null,null,null,null,null,null,null,null,null,null,null,null,null,null,null,null,null,null,null,null,null,null,null,null,null,null,null,null,null,null,null,null,null,null,null,null,null,null,null,null,null,null,null,null,null,null,null,null,null,null,null,null,null,null,null,null,null,null,null,null,null,null,null,null,null,null,null,null,null,null,null,null,null,null,null,null,null,null,null,null,null,null,null,null,null,null,null,null,null,null,null,null,null,"00:00:00"]
[null,null,null,null,null,null,null,null,null,null,null,null,null,null,null,null,"理由："]
[null,null,null,null,null,null,null,null,null,null,null,null,null,null,null,null,null,null,null,null,null,null,null,null,null,null,null,null,null,null,null,null,null,null,null,null,null,null,null,null,null,null,null,null,null,null,null,null,null,null,null,null,null,null,null,null,null,null,null,null,null,null,null,null,null,null,null,null,null,null,null,null,null,null,null,null,null,null,null,null,null,null,null,null,null,null,null,null,null,null,null,null,null,null,null,null,null,null,null,null,null,null,null,null,null,"00:00:00",null,"船舶所有者"]
[null,null,null,null,null,null,null,null,null,null,null,null,null,null,null,null,"理由：",null,null,null,null,null,null,null,null,null,null,null,null,null,null,null,null,null,null,null,null,null,null,null,null,null,null,null,null,null,null,null,null,null,null,null,null,null,null,null,null,null,null,null,null,null,null,null,null,null,null,null,null,null,null,null,null,null,null,null,null,null,null,null,null,null,null,null,null,null,null,null,null,null,null,null,null,null,null,null,null,null,null,null,null,null,null,null,null,null,null,null,null,null,null,null,null,null,null,null,null,null,null,null,null,"："]
[]
[null,null,null,null,null,null,null,null,null,null,null,null,null,null,null,null,"理由：",null,null,null,null,null,null,null,null,null,null,null,null,null,null,null,null,null,null,null,null,null,null,null,null,null,null,null,null,null,null,null,null,null,null,null,null,null,null,null,null,null,null,null,null,null,null,null,null,null,null,null,null,null,null,null,null,null,null,null,null,null,null,null,null,null,null,null,null,null,null,null,null,null,null,null,null,null,null,null,null,null,null,null,null,null,null,null,null,null,null,"派遣元船舶所有者\n（派遣の場合に限る）"]
[null,null,null,null,null,null,null,null,null,null,null,null,null,null,null,null,null,null,null,null,null,null,null,null,null,null,null,null,null,null,null,null,null,null,null,null,null,null,null,null,null,null,null,null,null,null,null,null,null,null,null,null,null,null,null,null,null,null,null,null,null,null,null,null,null,null,null,null,null,null,null,null,null,null,null,null,null,null,null,null,null,null,null,null,null,null,null,null,null,null,null,null,null,null,null,null,null,null,null,null,null,null,null,null,null,null,null,null,null,null,null,null,null,null,null,null,null,null,null,null,null,"："]
[null,"end"]

{"sheet":"ログ","index":5,"n_rows":4,"n_cols":5,"rows_kept":4,"cut":false,"hidden":false,"merged":[]}
["ログ",null,null,null,"「メニュー」シートに戻る"]
[]
[null,"処理時刻"]
["No","日付","時刻","処理名","処理結果"]

{"sheet":"エラーリスト","index":6,"n_rows":4,"n_cols":6,"rows_kept":4,"cut":false,"hidden":false,"merged":[]}
["エラーリスト",null,null,null,null,"「メニュー」シートに戻る"]
[]
[]
["No","シート名","項目名","エラー内容","レベル","エラー行"]

{"sheet":"【前バージョン取込】","index":7,"n_rows":11,"n_cols":3,"rows_kept":11,"cut":false,"hidden":false,"merged":[[11,2,11,18]]}
["●船員の労働時間管理支援ツール　前バージョン取込"]
[]
[null,"※労働時間等を入力した前バージョン（Ver.1.0～1.3のいずれか）のファイルを準備してください。"]
[null,"　 なお、同一バージョンの取り込みも可能ですので、必要に応じて使用してください。"]
[]
[]
[null,null,"労働時間等を入力した前バージョンのファイルを取り込み、最新バージョンに更新します。"]
[null,null,"前バージョンを取り込んだ後は、本バージョンを使用して引き続き入力等を行ってください。"]
[null,null,"本バージョンから初めて入力を開始する場合は、前バージョン取込を行う必要はありません。"]
[]
[null,null,"【前バージョンのファイルのフルパス指定】"]

{"sheet":"(非)項目リスト","index":8,"n_rows":63,"n_cols":27,"rows_kept":63,"cut":false,"hidden":true,"merged":[]}
["●作業種別",null,null,null,null,null,"●作業分類",null,null,"●７２条特例",null,null,"●有無",null,null,"●月",null,"●時間",null,"●分",null,"●職名",null,null,null,"●所属"]
["作業種別",null,"作業分類",null,null,null,"作業分類",null,null,"７２条特例",null,null,"有無",null,null,"月",null,"時間",null,"分",null,"職名",null,null,null,"役職の所属"]
["ID","名","ID","名","備考",null,"ID","名",null,"ID","名",null,"ID","名",null,"ID",null,"ID",null,"ID",null,"ID","名","所属",null,"ID","名"]
[1,"当直作業",1,"通常労働",null,null,1,"通常労働",null,1,"定期短距離船",null,0,"有",null,1,null,0,null,0,null,1,"船長","船　長",null,1,"船　長"]
[2,"荷役作業",1,"通常労働",null,null,2,"安全臨時労働",null,2,"海底掘削船",null,1,"無",null,2,null,1,null,1,null,2,"一等航海士","甲板部",null,2,"甲板部"]
[3,"出入港作業",1,"通常労働",null,null,3,"特別労働",null,3,"海洋資源探査船",null,null,null,null,3,null,2,null,2,null,3,"二等航海士",null,null,3,"機関部"]
[4,"保守作業",1,"通常労働",null,null,4,"緊急作業",null,4,"業務繁閑船",null,null,null,null,4,null,3,null,3,null,4,"三等航海士",null,null,4,"無線部"]
[5,"停泊中作業",1,"通常労働",null,null,5,"通常労働外（Ｒ５から通常労働）",null,null,null,null,null,null,null,5,null,4,null,4,null,5,"甲板長",null,null,5,"事務部"]
[6,"事務他作業",1,"通常労働",null,null,null,null,null,null,null,null,null,null,null,6,null,5,null,5,null,6,"甲板手",null,null,6,"司厨部"]
[7,"供食業務",1,"通常労働",null,null,null,null,null,null,null,null,null,null,null,7,null,6,null,6,null,7,"甲板員",null,null,7,"医務部"]
[8,"操練",5,"通常労働外","Ｒ５法改正予定",null,null,null,null,null,null,null,null,null,null,8,null,7,null,7,null,8,"機関長","機関部",null,8,"その他"]
[9,"引継作業",5,"通常労働外","Ｒ５法改正予定",null,null,null,null,null,null,null,null,null,null,9,null,8,null,8,null,9,"一等機関士"]
[10,"安全臨時労働",2,"安全臨時労働",null,null,null,null,null,null,null,null,null,null,null,10,null,9,null,9,null,10,"二等機関士"]
[11,"特別労働",3,"特別労働",null,null,null,null,null,null,null,null,null,null,null,11,null,10,null,10,null,11,"三等機関士"]
[12,"緊急作業",4,"緊急作業",null,null,null,null,null,null,null,null,null,null,null,12,null,11,null,11,null,12,"操機長"]
[13,"その他",1,"通常労働",null,null,null,null,null,null,null,null,null,null,null,null,null,12,null,12,null,13,"操機手"]
[null,null,null,null,null,null,null,null,null,null,null,null,null,null,null,null,null,13,null,13,null,14,"機関員"]
[null,null,null,null,null,null,null,null,null,null,null,null,null,null,null,null,null,14,null,14,null,15,"通信長","無線部"]
[null,null,null,null,null,null,null,null,null,null,null,null,null,null,null,null,null,15,null,15,null,16,"事務長","事務部"]
[null,null,null,null,null,null,null,null,null,null,null,null,null,null,null,null,null,16,null,16,null,17,"事務員"]
[null,null,null,null,null,null,null,null,null,null,null,null,null,null,null,null,null,17,null,17,null,18,"司厨長","司厨部"]
[null,null,null,null,null,null,null,null,null,null,null,null,null,null,null,null,null,18,null,18,null,19,"司厨手"]
[null,null,null,null,null,null,null,null,null,null,null,null,null,null,null,null,null,19,null,19,null,20,"司厨員"]
[null,null,null,null,null,null,null,null,null,null,null,null,null,null,null,null,null,20,null,20,null,21,"調理士"]
[null,null,null,null,null,null,null,null,null,null,null,null,null,null,null,null,null,21,null,21,null,22,"調理員"]
[null,null,null,null,null,null,null,null,null,null,null,null,null,null,null,null,null,22,null,22,null,23,"船医","医務部"]
[null,null,null,null,null,null,null,null,null,null,null,null,null,null,null,null,null,23,null,23,null,24,"看護師"]
[null,null,null,null,null,null,null,null,null,null,null,null,null,null,null,null,null,null,null,24,null,25,"その他","その他"]
[null,null,null,null,null,null,null,null,null,null,null,null,null,null,null,null,null,null,null,25]
[null,null,null,null,null,null,null,null,null,null,null,null,null,null,null,null,null,null,null,26]
[null,null,null,null,null,null,null,null,null,null,null,null,null,null,null,null,null,null,null,27]
[null,null,null,null,null,null,null,null,null,null,null,null,null,null,null,null,null,null,null,28]
[null,null,null,null,null,null,null,null,null,null,null,null,null,null,null,null,null,null,null,29]
[null,null,null,null,null,null,null,null,null,null,null,null,null,null,null,null,null,null,null,30]
[null,null,null,null,null,null,null,null,null,null,null,null,null,null,null,null,null,null,null,31]
[null,null,null,null,null,null,null,null,null,null,null,null,null,null,null,null,null,null,null,32]
[null,null,null,null,null,null,null,null,null,null,null,null,null,null,null,null,null,null,null,33]
[null,null,null,null,null,null,null,null,null,null,null,null,null,null,null,null,null,null,null,34]
[null,null,null,null,null,null,null,null,null,null,null,null,null,null,null,null,null,null,null,35]
[null,null,null,null,null,null,null,null,null,null,null,null,null,null,null,null,null,null,null,36]
[null,null,null,null,null,null,null,null,null,null,null,null,null,null,null,null,null,null,null,37]
[null,null,null,null,null,null,null,null,null,null,null,null,null,null,null,null,null,null,null,38]
[null,null,null,null,null,null,null,null,null,null,null,null,null,null,null,null,null,null,null,39]
[null,null,null,null,null,null,null,null,null,null,null,null,null,null,null,null,null,null,null,40]
[null,null,null,null,null,null,null,null,null,null,null,null,null,null,null,null,null,null,null,41]
[null,null,null,null,null,null,null,null,null,null,null,null,null,null,null,null,null,null,null,42]
[null,null,null,null,null,null,null,null,null,null,null,null,null,null,null,null,null,null,null,43]
[null,null,null,null,null,null,null,null,null,null,null,null,null,null,null,null,null,null,null,44]
[null,null,null,null,null,null,null,null,null,null,null,null,null,null,null,null,null,null,null,45]
[null,null,null,null,null,null,null,null,null,null,null,null,null,null,null,null,null,null,null,46]
[null,null,null,null,null,null,null,null,null,null,null,null,null,null,null,null,null,null,null,47]
[null,null,null,null,null,null,null,null,null,null,null,null,null,null,null,null,null,null,null,48]
[null,null,null,null,null,null,null,null,null,null,null,null,null,null,null,null,null,null,null,49]
[null,null,null,null,null,null,null,null,null,null,null,null,null,null,null,null,null,null,null,50]
[null,null,null,null,null,null,null,null,null,null,null,null,null,null,null,null,null,null,null,51]
[null,null,null,null,null,null,null,null,null,null,null,null,null,null,null,null,null,null,null,52]
[null,null,null,null,null,null,null,null,null,null,null,null,null,null,null,null,null,null,null,53]
[null,null,null,null,null,null,null,null,null,null,null,null,null,null,null,null,null,null,null,54]
[null,null,null,null,null,null,null,null,null,null,null,null,null,null,null,null,null,null,null,55]
[null,null,null,null,null,null,null,null,null,null,null,null,null,null,null,null,null,null,null,56]
[null,null,null,null,null,null,null,null,null,null,null,null,null,null,null,null,null,null,null,57]
[null,null,null,null,null,null,null,null,null,null,null,null,null,null,null,null,null,null,null,58]
[null,null,null,null,null,null,null,null,null,null,null,null,null,null,null,null,null,null,null,59]

{"sheet":"(非)エラー一覧","index":9,"n_rows":54,"n_cols":6,"rows_kept":54,"cut":false,"hidden":true,"merged":[]}
["エラーリスト",null,null,null,null,"「メニュー」シートに戻る"]
[]
[]
["No","シート名","項目名","エラー内容","レベル","エラー行"]
[1010,"基本情報入力","船員の氏名",{"$f":"\"「\"&C5&\"」\"&\"が入力されていません\"","v":"「船員の氏名」が入力されていません"},"エラー"]
[1020,null,"船舶所有者名",{"$f":"\"「\"&C6&\"」\"&\"が入力されていません\"","v":"「船舶所有者名」が入力されていません"},"エラー"]
[1030,null,"派遣元船舶所有者名（派遣の場合に限る）","チェック無し","－"]
[1040,null,"労務管理責任者の氏名",{"$f":"\"「\"&C8&\"」\"&\"が入力されていません\"","v":"「労務管理責任者の氏名」が入力されていません"},"エラー"]
[1050,null,"基準労働期間／基準労働期間",{"$f":"\"「\"&C9&\"」\"&\"が選択されていません\"","v":"「基準労働期間／基準労働期間」が選択されていません"},"エラー"]
[1060,null,"基準労働期間／起算日",{"$f":"\"「\"&C10&\"」\"&\"が入力されていません\"","v":"「基準労働期間／起算日」が入力されていません"},"エラー"]
[1070,null,"基準労働時間／起算日",{"$f":"\"「\"&C11&\"」\"&\"に日付以外が入力されています\"","v":"「基準労働時間／起算日」に日付以外が入力されています"},"エラー"]
[1080,null,"時間外労使協定の有無",{"$f":"\"「\"&C12&\"」\"&\"が選択されていません\"","v":"「時間外労使協定の有無」が選択されていません"},"エラー"]
[1090,null,"補償休日労働協定の有無",{"$f":"\"「\"&C13&\"」\"&\"が選択されていません\"","v":"「補償休日労働協定の有無」が選択されていません"},"エラー"]
[1100,null,"休息時間分割回数協定の有無",{"$f":"\"「\"&C14&\"」\"&\"が選択されていません\"","v":"「休息時間分割回数協定の有無」が選択されていません"},"エラー"]
[1110,null,"休日日数の定めの有無",{"$f":"\"「\"&C15&\"」\"&\"が選択されていません\"","v":"「休日日数の定めの有無」が選択されていません"},"エラー"]
[1120,null,"休日日数を定めている場合の日数",{"$f":"\"「休日日数の定めの有無」が\"\"有\"\"で、「\"&C16&\"」\"&\"が入力されていません\"","v":"「休日日数の定めの有無」が\"有\"で、「休日日数を定めている場合の日数」が入力されていません"},"エラー"]
[1130,null,"休日日数を定めている場合の日数",{"$f":"\"「休日日数の定めの有無」が\"\"無\"\"で、「\"&C16&\"」\"&\"が入力されています\"","v":"「休日日数の定めの有無」が\"無\"で、「休日日数を定めている場合の日数」が入力されています"},"警告"]
[1140,null,"休日日数を定めている場合の日数",{"$f":"\"「\"&C18&\"」\"&\"に整数以外が入力されています\"","v":"「休日日数を定めている場合の日数」に整数以外が入力されています"},"エラー"]
[1150,null,"有給休暇の必要日数",{"$f":"\"「\"&C19&\"」\"&\"が入力されていません\"","v":"「有給休暇の必要日数」が入力されていません"},"エラー"]
[1160,null,"有給休暇の必要日数",{"$f":"\"「\"&C20&\"」\"&\"に整数以外が入力されています\"","v":"「有給休暇の必要日数」に整数以外が入力されています"},"エラー"]
[1170,null,"７２条特例の有無",{"$f":"\"「\"&C21&\"」\"&\"が選択されていません\"","v":"「７２条特例の有無」が選択されていません"},"エラー"]
[1175,null,"７２条特例／一日当たりの労働時間",{"$f":"\"「\"&C22&\"」\"&\"が入力されていません\"","v":"「７２条特例／一日当たりの労働時間」が入力されていません"},"エラー"]
[1176,null,"７２条特例／一日当たりの労働時間",{"$f":"\"「\"&C23&\"」\"&\"で８時間～１２時間以外が入力されています\"","v":"「７２条特例／一日当たりの労働時間」で８時間～１２時間以外が入力されています"},"エラー"]
[1180,null,"乗船期間／開始日",{"$f":"\"「\"&C24&\"」\"&\"が入力されていません\"","v":"「乗船期間／開始日」が入力されていません"},"エラー"]
[1190,null,"乗船期間／開始日",{"$f":"\"「\"&C25&\"」\"&\"に日付以外が入力されています\"","v":"「乗船期間／開始日」に日付以外が入力されています"},"エラー"]
[1200,null,"乗船期間／終了日",{"$f":"\"「\"&C26&\"」\"&\"が入力されていません\"","v":"「乗船期間／終了日」が入力されていません"},"エラー"]
[1210,null,"乗船期間／開始日",{"$f":"\"「\"&C27&\"」\"&\"に日付以外が入力されています\"","v":"「乗船期間／開始日」に日付以外が入力されています"},"エラー"]
[1220,null,"乗船期間",{"$f":"\"「\"&C28&\"」\"&\"の「開始日」が「終了日」より後の日付になっています\"","v":"「乗船期間」の「開始日」が「終了日」より後の日付になっています"},"エラー"]
[1230,null,"乗船期間／船名",{"$f":"\"「\"&C29&\"」\"&\"が入力されていません\"","v":"「乗船期間／船名」が入力されていません"},"エラー"]
[1240,null,"乗船期間／役職",{"$f":"\"「\"&C30&\"」\"&\"が入力されていません\"","v":"「乗船期間／役職」が入力されていません"},"エラー"]
[2010,"労働時間入力","年月日",{"$f":"\"「\"&C31&\"」\"&\"が入力されていません\"","v":"「年月日」が入力されていません"},"エラー"]
[2020,"（登録ボタン押下時）","年月日",{"$f":"\"「\"&C32&\"」\"&\"に日付以外が入力されています\"","v":"「年月日」に日付以外が入力されています"},"エラー"]
[2030,null,"年月日",{"$f":"\"「\"&C33&\"」\"&\"に「基準労働期間」外の日付が入力されています\"","v":"「年月日」に「基準労働期間」外の日付が入力されています"},"エラー"]
[2040,null,"作業開始時刻",{"$f":"\"「\"&C34&\"」\"&\"が入力されていません\"","v":"「作業開始時刻」が入力されていません"},"エラー"]
[2050,null,"作業開始時刻",{"$f":"\"「\"&C35&\"」\"&\"に0～2359以外が入力されています\"","v":"「作業開始時刻」に0～2359以外が入力されています"},"エラー"]
[2070,null,"作業終了時刻",{"$f":"\"「\"&C36&\"」\"&\"が入力されていません\"","v":"「作業終了時刻」が入力されていません"},"エラー"]
[2080,null,"作業終了時刻",{"$f":"\"「\"&C37&\"」\"&\"に0～2359以外が入力されています\"","v":"「作業終了時刻」に0～2359以外が入力されています"},"エラー"]
[2090,null,"作業時刻",{"$f":"\"「\"&C38&\"」\"&\"が登録済みの時刻と重複している時間があります\"","v":"「作業時刻」が登録済みの時刻と重複している時間があります"},"エラー"]
[2100,null,"作業種別",{"$f":"\"「\"&C39&\"」\"&\"が選択されていません\"","v":"「作業種別」が選択されていません"},"エラー"]
[2110,null,"備考","チェック無し","－"]
[2120,null,"修正者",{"$f":"\"登録済み情報の修正ですが、「\"&C41&\"」\"&\"が入力されていません\"","v":"登録済み情報の修正ですが、「修正者」が入力されていません"},"エラー"]
[2130,null,"修正理由",{"$f":"\"登録済み情報の修正ですが、「\"&C42&\"」\"&\"が入力されていません\"","v":"登録済み情報の修正ですが、「修正理由」が入力されていません"},"エラー"]
[3010,"労働時間入力","安全臨時労働／開始時刻",{"$f":"\"「\"&C43&\"」\"&\"が入力されていません\"","v":"「安全臨時労働／開始時刻」が入力されていません"},"エラー"]
[3020,null,"安全臨時労働／開始時刻",{"$f":"\"「\"&C44&\"」\"&\"に0～2359以外が入力されています\"","v":"「安全臨時労働／開始時刻」に0～2359以外が入力されています"},"エラー"]
[3040,null,"安全臨時労働／終了時刻",{"$f":"\"「\"&C45&\"」\"&\"が入力されていません\"","v":"「安全臨時労働／終了時刻」が入力されていません"},"エラー"]
[3050,null,"安全臨時労働／終了時刻",{"$f":"\"「\"&C46&\"」\"&\"に0～2359以外が入力されています\"","v":"「安全臨時労働／終了時刻」に0～2359以外が入力されています"},"エラー"]
[3060,null,"安全臨時労働／作業時刻",{"$f":"\"「\"&C47&\"」\"&\"が登録済みの時刻と重複している時間があります\"","v":"「安全臨時労働／作業時刻」が登録済みの時刻と重複している時間があります"},"エラー"]
[3070,null,"緊急作業／開始時刻",{"$f":"\"「\"&C48&\"」\"&\"が入力されていません\"","v":"「緊急作業／開始時刻」が入力されていません"},"エラー"]
[3080,null,"緊急作業／開始時刻",{"$f":"\"「\"&C49&\"」\"&\"に0～2359以外が入力されています\"","v":"「緊急作業／開始時刻」に0～2359以外が入力されています"},"エラー"]
[3100,null,"緊急作業／終了時刻",{"$f":"\"「\"&C50&\"」\"&\"が入力されていません\"","v":"「緊急作業／終了時刻」が入力されていません"},"エラー"]
[3110,null,"緊急作業／終了時刻",{"$f":"\"「\"&C51&\"」\"&\"に0～2359以外が入力されています\"","v":"「緊急作業／終了時刻」に0～2359以外が入力されています"},"エラー"]
[3120,null,"緊急作業／作業時刻",{"$f":"\"「\"&C52&\"」\"&\"が登録済みの時刻と重複している時間があります\"","v":"「緊急作業／作業時刻」が登録済みの時刻と重複している時間があります"},"エラー"]
[4010,"作業の種類","作業の種類の名称",{"$f":"\"「\"&C53&\"」\"&\"が入力されていません\"","v":"「作業の種類の名称」が入力されていません"},"エラー"]
[4020,null,"作業の種類の名称",{"$f":"\"「\"&C54&\"」\"&\"が重複して入力されています\"","v":"「作業の種類の名称」が重複して入力されています"},"エラー"]